bitfinex/quotes_BTCUSD_20251009
["timestamp","ask_amount","ask_price","bid_price","bid_amount"]
[1760019994465,0.13862255,121740.0,121730.0,0.35451286]
[1760019994466,0.08312206,121740.0,121730.0,0.35451286]
[1760019994850,0.002,121740.0,121730.0,0.36272776]
[1760019995063,0.002,121740.0,121730.0,0.60992776]
[1760019995261,0.002,121740.0,121730.0,0.36272776]
[1760019995662,0.002,121740.0,121730.0,0.60992776]
[1760019996071,0.00136954,121770.0,121760.0,0.16425755]
[1760019996406,0.0844916,121770.0,121760.0,0.51226755]
[1760019996611,0.24873566,121770.0,121760.0,0.56427755]
[1760019996802,0.24873566,121770.0,121760.0,0.40002]
[1760019997012,0.0844916,121770.0,121760.0,0.56427755]
[1760019997145,0.24873566,121770.0,121760.0,0.56427755]
[1760019997357,0.25073566,121770.0,121760.0,0.3999]
[1760019997571,0.25073566,121770.0,121760.0,0.36986]
[1760019997753,0.25073566,121770.0,121760.0,0.53399755]
[1760019998408,0.0864916,121770.0,121760.0,0.53399755]
[1760019998625,0.0864916,121770.0,121760.0,0.56403755]
[1760019999260,0.25751566,121770.0,121760.0,0.01541]
[1760019999444,0.25751566,121770.0,121760.0,0.3322]
[1760019999585,0.25073566,121770.0,121760.0,0.45012755]
[1760019999779,0.0864916,121770.0,121760.0,0.53556755]
[1760019999984,0.0864916,121770.0,121760.0,0.56824755]
[1760020000196,0.0864916,121770.0,121760.0,0.32156755]
[1760020000197,0.00336954,121770.0,121760.0,0.32156755]
[1760020000395,0.00336954,121770.0,121760.0,0.56820755]
[1760020001290,0.00136954,121770.0,121760.0,0.56820755]
[1760020001839,0.00136954,121770.0,121760.0,0.48276755]
[1760020002036,0.00136954,121770.0,121760.0,0.56820755]
[1760020002489,0.00136954,121770.0,121760.0,0.32156755]
[1760020002922,0.00136954,121770.0,121760.0,0.56820755]
[1760020003100,0.00136954,121770.0,121760.0,0.66820755]
[1760020003458,0.00136954,121770.0,121760.0,0.42152755]
[1760020003835,0.00136954,121770.0,121760.0,0.66812755]
[1760020004037,0.00136954,121770.0,121760.0,0.33612755]
[1760020004247,0.00136954,121770.0,121760.0,0.66812755]
[1760020004643,0.00136954,121770.0,121760.0,0.42152755]
[1760020004994,0.00136954,121770.0,121760.0,0.66812755]
[1760020005239,0.00136954,121770.0,121760.0,0.75124961]
[1760020005660,0.00136954,121770.0,121760.0,1.09292961]
[1760020006271,0.00136954,121770.0,121760.0,0.75924961]
[1760020006513,0.00136954,121770.0,121760.0,1.43292961]
[1760020006819,0.00136954,121770.0,121760.0,0.66812755]
[1760020007010,0.00136954,121770.0,121760.0,0.42152755]
[1760020007213,0.00136954,121770.0,121760.0,0.41924961]
[1760020007420,0.00136954,121770.0,121760.0,1.09292961]
[1760020007657,0.00136954,121770.0,121760.0,0.41924961]
[1760020007869,0.00136954,121770.0,121760.0,1.09288961]
[1760020010643,0.00136954,121770.0,121760.0,0.41924961]
[1760020010980,0.00136954,121770.0,121760.0,1.09288961]
[1760020011950,0.00136954,121770.0,121760.0,1.43288961]
[1760020012779,0.00136954,121770.0,121760.0,1.18632961]
[1760020012985,1e-08,121770.0,121760.0,1.18632961]
[1760020013191,0.16417665,121820.0,121810.0,0.16419013]
[1760020013588,0.31400172,121820.0,121810.0,0.0748]
[1760020013782,0.24780669,121820.0,121810.0,0.37113]
[1760020013946,0.24780669,121820.0,121810.0,0.12461]
[1760020014148,0.00887763,121820.0,121810.0,0.34080914]
[1760020014328,0.00050798,121820.0,121810.0,0.57091013]
[1760020014529,0.00050798,121820.0,121810.0,0.91091013]
[1760020014906,0.00150798,121820.0,121810.0,0.91091013]
[1760020015393,0.00050798,121820.0,121810.0,0.91091013]
[1760020016619,0.00050798,121820.0,121810.0,0.57899013]
[1760020016829,0.16468463,121820.0,121810.0,0.0748]
[1760020017038,0.59568156,121820.0,121810.0,0.0854]
[1760020017373,0.59568156,121820.0,121810.0,0.332082]
[1760020017516,0.39967903,121820.0,121810.0,0.332082]
[1760020017694,0.56385568,121820.0,121810.0,0.332082]
[1760020018133,0.56385568,121820.0,121810.0,0.000202]
[1760020018395,0.56385568,121820.0,121810.0,0.332082]
[1760020018638,0.16417665,121820.0,121810.0,0.6223935]
[1760020018827,0.00256,121820.0,121810.0,0.6223935]
[1760020019245,0.16673665,121820.0,121810.0,0.12636337]
[1760020019475,0.16673665,121820.0,121810.0,0.57103213]
[1760020019716,0.16673665,121820.0,121810.0,0.32459213]
[1760020019932,0.00456,121820.0,121810.0,0.57103213]
[1760020020339,0.16673665,121820.0,121810.0,0.160402]
[1760020020545,0.16673665,121820.0,121810.0,0.57103213]
[1760020020744,0.16673665,121820.0,121810.0,0.11466838]
[1760020021047,0.16673665,121820.0,121810.0,0.039412]
[1760020021260,0.67459564,121820.0,121810.0,0.246642]
[1760020021464,0.67459564,121820.0,121810.0,0.332002]
[1760020021676,0.67459564,121820.0,121810.0,0.000202]
[1760020021879,0.70474754,121820.0,121810.0,0.246642]
[1760020022088,0.70474754,121820.0,121810.0,0.000202]
[1760020022516,0.70474754,121820.0,121810.0,0.246642]
[1760020023880,0.70574754,121820.0,121810.0,0.246642]
[1760020024497,0.70474754,121820.0,121810.0,0.246602]
[1760020024907,0.70474754,121820.0,121810.0,0.000202]
[1760020025158,0.24985871,121820.0,121810.0,0.268482]
[1760020025303,0.67459564,121820.0,121810.0,0.31746952]
[1760020025510,0.67459564,121820.0,121810.0,0.50353965]
[1760020025989,0.67459564,121820.0,121810.0,0.33934952]
[1760020025990,0.67659564,121820.0,121810.0,0.33934952]
[1760020026236,0.67659564,121820.0,121810.0,0.30013952]
[1760020026436,0.67459564,121820.0,121810.0,0.30013952]
[1760020026640,0.67459564,121820.0,121810.0,0.05373952]
[1760020026838,0.67559564,121820.0,121810.0,0.246602]
[1760020027226,0.2583517,121820.0,121810.0,0.23919213]
[1760020027426,0.2583517,121820.0,121810.0,0.246602]
[1760020027633,0.2583517,121820.0,121810.0,0.246562]
[1760020028130,0.68308863,121820.0,121810.0,0.285772]
[1760020028329,0.68308863,121820.0,121810.0,0.3445975]
[1760020028547,0.2583517,121820.0,121810.0,0.3445975]
[1760020028812,0.01105299,121820.0,121810.0,0.50878763]
[1760020029047,0.00356,121820.0,121810.0,0.54437763]
[1760020029203,0.16773665,121820.0,121810.0,0.1835975]
[1760020029391,0.17522964,121820.0,121810.0,0.2194275]
[1760020029591,0.17522964,121820.0,121810.0,0.406962]
[1760020029847,0.17522964,121820.0,121810.0,0.160602]
[1760020030007,0.17522964,121820.0,121810.0,0.406962]
[1760020030192,0.17422964,121820.0,121810.0,0.406962]
[1760020030600,0.16673665,121820.0,121810.0,0.406962]
[1760020030868,0.17423921,121820.0,121810.0,0.4493912]
[1760020031320,0.17423958,121820.0,121810.0,0.4493912]
[1760020031538,0.17423958,121820.0,121810.0,0.4493512]
[1760020031767,0.01006293,121820.0,121810.0,0.61354133]
[1760020031980,0.00256,121820.0,121810.0,0.61354133]
[1760020032194,0.01006293,121820.0,121810.0,0.61354133]
[1760020032423,0.17423958,121820.0,121810.0,0.61354131]
[1760020033378,0.17423958,121820.0,121810.0,0.20303118]
[1760020033809,0.17423958,121820.0,121810.0,0.44931118]
[1760020034014,0.17423958,121820.0,121810.0,0.11767118]
[1760020034227,0.59897651,121820.0,121810.0,0.37105198]
[1760020034404,0.17423958,121820.0,121810.0,0.37105198]
[1760020035079,0.17423958,121820.0,121810.0,0.57107211]
[1760020035276,0.17423958,121820.0,121810.0,0.16060198]
[1760020035516,0.17423958,121820.0,121810.0,0.57107211]
[1760020035705,0.17423958,121820.0,121810.0,0.64633266]
[1760020035920,0.17423958,121820.0,121810.0,0.15050253]
[1760020036122,0.17423958,121820.0,121810.0,0.40688198]
[1760020036734,0.17423958,121820.0,121810.0,0.57107211]
[1760020036941,0.17423958,121820.0,121810.0,0.57103211]
[1760020036942,0.01006293,121820.0,121810.0,0.57103211]
[1760020037142,0.17423958,121820.0,121810.0,0.57103211]
[1760020037349,0.01006293,121820.0,121810.0,0.66479211]
[1760020037519,0.01006293,121820.0,121810.0,0.9910289]
[1760020037929,0.01006293,121820.0,121810.0,0.6594289]
[1760020038135,0.01006293,121820.0,121810.0,0.9910289]
[1760020040444,0.01006293,121820.0,121810.0,0.6594289]
[1760020040651,0.01006293,121820.0,121810.0,0.24059877]
[1760020040799,0.17423958,121820.0,121810.0,0.15523877]
[1760020041006,0.17423958,121820.0,121810.0,0.5709921]
[1760020041996,0.01006293,121820.0,121810.0,0.5709921]
[1760020042259,0.01006293,121820.0,121810.0,0.3247921]
[1760020042460,0.01006293,121820.0,121810.0,0.5709521]
[1760020043114,0.01006293,121820.0,121810.0,0.3247921]
[1760020043304,0.01006293,121820.0,121810.0,0.62404835]
[1760020045738,0.00256,121820.0,121810.0,0.62404834]
[1760020046024,0.00256,121820.0,121810.0,0.62500834]
[1760020046534,0.00256,121820.0,121810.0,0.29352834]
[1760020046743,0.01008107,121820.0,121810.0,0.62500834]
[1760020047185,0.00256,121820.0,121810.0,0.29352834]
[1760020047378,0.00256,121820.0,121810.0,0.37888834]
[1760020047559,0.00256,121820.0,121810.0,0.62500834]
[1760020048182,0.17425578,121820.0,121810.0,0.62496834]
[1760020048403,0.16673665,121820.0,121810.0,0.12933821]
[1760020048742,0.00256,121820.0,121810.0,0.57187209]
[1760020049107,0.00256,121820.0,121810.0,0.57087209]
[1760020053489,0.00256,121820.0,121810.0,0.57083209]
[1760020054187,0.00256,121820.0,121810.0,0.23943209]
[1760020054339,0.00256,121820.0,121810.0,0.57079209]
[1760020054539,0.00256,121820.0,121810.0,0.40478889]
[1760020054753,0.00256,121820.0,121810.0,0.65078889]
[1760020055165,0.00256,121820.0,121810.0,0.67543447]
[1760020055367,0.00256,121820.0,121810.0,0.67643447]
[1760020056503,0.00256,121820.0,121810.0,0.59107447]
[1760020056647,0.00256,121820.0,121810.0,0.43043447]
[1760020057046,0.00256,121820.0,121810.0,0.67639447]
[1760020057269,0.00256,121820.0,121810.0,0.43043447]
[1760020057468,0.00256,121820.0,121810.0,0.67639447]
[1760020057737,0.00256,121820.0,121810.0,0.43043447]
[1760020057936,0.00256,121820.0,121810.0,0.67639447]
[1760020059155,0.00256,121820.0,121810.0,0.67639446]
[1760020059361,0.67459564,121820.0,121810.0,0.06505753]
[1760020059597,0.67459564,121820.0,121810.0,0.00120195]
[1760020059598,1.04474754,121820.0,121810.0,0.00120195]
[1760020060109,0.62001061,121820.0,121810.0,0.00120195]
[1760020060285,1.04474754,121820.0,121810.0,0.00120195]
[1760020060943,0.16423057,121780.0,121770.0,0.01682]
[1760020061160,0.16423057,121780.0,121770.0,0.06758653]
[1760020061363,0.16474274,121780.0,121770.0,0.15294653]
[1760020061600,0.16474274,121780.0,121770.0,0.39882653]
[1760020062241,0.16489495,121780.0,121770.0,0.39882653]
[1760020062459,0.16489495,121780.0,121760.0,0.43144258]
[1760020062460,0.16424406,121770.0,121760.0,0.25218]
[1760020062651,0.16424406,121770.0,121760.0,0.51992]
[1760020063083,0.58898099,121770.0,121760.0,0.51992]
[1760020063430,0.16424406,121770.0,121760.0,0.51992]
[1760020063655,0.16424406,121770.0,121760.0,0.18868]
[1760020063833,0.16424406,121770.0,121760.0,0.47509099]
[1760020064038,0.16424406,121770.0,121760.0,0.63934854]
[1760020064244,0.67275394,121780.0,121760.0,0.39346854]
[1760020064452,0.16489495,121780.0,121770.0,0.47629194]
[1760020064652,0.16489495,121780.0,121770.0,0.31973]
[1760020064853,0.17295957,121780.0,121770.0,0.35423068]
[1760020065052,0.17295957,121780.0,121770.0,0.10835068]
[1760020065253,0.17295957,121780.0,121770.0,0.51847474]
[1760020065487,0.17295957,121780.0,121770.0,0.55244474]
[1760020065698,0.17295957,121780.0,121770.0,0.30656474]
[1760020065887,0.008729,121780.0,121770.0,0.55244474]
[1760020066087,0.17295957,121780.0,121770.0,0.55244474]
[1760020066588,0.17395957,121780.0,121770.0,0.55240474]
[1760020067110,0.17395957,121780.0,121770.0,0.38816068]
[1760020067446,0.17395957,121780.0,121770.0,0.35419068]
[1760020067898,0.5986965,121780.0,121770.0,0.10835068]
[1760020068102,0.68181856,121780.0,121770.0,0.24584]
[1760020068721,0.16424406,121770.0,121760.0,0.16682]
[1760020068877,0.16424406,121770.0,121760.0,0.66227755]
[1760020069060,0.16424406,121770.0,121760.0,0.68481755]
[1760020069305,0.58898099,121770.0,121760.0,0.18936]
[1760020069513,0.70225495,121770.0,121760.0,0.15]
[1760020069732,1.04225495,121770.0,121760.0,0.15]
[1760020069929,1.28905495,121770.0,121760.0,0.15]
[1760020070126,1.04325495,121770.0,121760.0,0.15]
[1760020070334,1.28905495,121770.0,121760.0,0.15]
[1760020070548,1.12225175,121770.0,121760.0,0.15]
[1760020070790,1.45345175,121770.0,121760.0,0.15]
[1760020070989,1.46842864,121770.0,121760.0,0.15]
[1760020071895,1.47042864,121770.0,121760.0,0.15]
[1760020072102,1.64142799,121770.0,121760.0,0.15]
[1760020072303,1.70277996,121770.0,121760.0,0.15]
[1760020072512,1.70074952,121770.0,121760.0,0.15]
[1760020072711,1.70374952,121770.0,121760.0,0.15]
[1760020073409,1.37254952,121770.0,121760.0,0.15]
[1760020073624,1.58085753,121770.0,121760.0,0.15]
[1760020074234,1.24965753,121770.0,121760.0,0.15]
[1760020074646,1.24964061,121770.0,121760.0,0.15]
[1760020074839,1.49544061,121770.0,121760.0,0.15]
[1760020075227,1.5354465,121770.0,121760.0,0.15]
[1760020075434,1.5324465,121770.0,121760.0,0.15]
[1760020075692,1.5344465,121770.0,121760.0,0.15]
[1760020075870,1.24864061,121770.0,121760.0,0.15]
[1760020076016,1.57980061,121770.0,121760.0,0.15]
[1760020076227,1.33404061,121770.0,121760.0,0.15]
[1760020076452,1.65980061,121770.0,121760.0,0.15]
[1760020077190,1.32864061,121770.0,121760.0,0.15]
[1760020077398,1.65980061,121770.0,121760.0,0.15]
[1760020077797,1.65978487,121770.0,121760.0,0.15]
[1760020078236,1.65978487,121770.0,121750.0,0.00136965]
[1760020078237,1.13014573,121760.0,121750.0,0.00136965]
[1760020078457,1.22818158,121760.0,121750.0,0.00136965]
[1760020079539,1.55930158,121760.0,121750.0,0.00136965]
[1760020079752,1.47390158,121760.0,121750.0,0.00136965]
[1760020079956,1.55930158,121760.0,121750.0,0.00136965]
[1760020080261,1.63929838,121760.0,121750.0,0.00136965]
[1760020080491,0.16428454,121740.0,121730.0,0.12176996]
[1760020080695,1.13396857,121740.0,121730.0,0.12176996]
[1760020080923,0.88820857,121740.0,121730.0,0.12176996]
[1760020081192,0.88820857,121740.0,121730.0,0.12279483]
[1760020081383,1.1849205,121740.0,121730.0,0.12279483]
[1760020081597,0.9392005,121740.0,121730.0,0.12279483]
[1760020081770,1.1849205,121740.0,121730.0,0.12330281]
[1760020082179,1.1869205,121740.0,121730.0,0.12330281]
[1760020083549,0.59118422,121740.0,121730.0,0.12330281]
[1760020083754,1.1869205,121740.0,121730.0,0.12330281]
[1760020085247,1.13592857,121740.0,121730.0,0.12330281]
[1760020086166,0.89020857,121740.0,121730.0,0.12330281]
[1760020086364,0.53446343,121720.0,121710.0,1e-08]
[1760020086589,1.55931556,121720.0,121710.0,0.00015234]
[1760020086964,1.22823556,121720.0,121710.0,0.00015234]
[1760020087211,1.55387236,121720.0,121710.0,0.00015234]
[1760020087384,1.55388386,121720.0,121710.0,0.00015234]
[1760020087901,1.55488386,121720.0,121710.0,0.00015234]
[1760020088067,1.99668386,121720.0,121710.0,0.00015234]
[1760020088281,0.90999925,121720.0,121710.0,0.00015234]
[1760020088494,0.69378363,121720.0,121710.0,0.20435737]
[1760020088691,0.69578363,121720.0,121710.0,0.20435737]
[1760020089115,0.86009516,121720.0,121710.0,0.20435737]
[1760020089397,0.86009516,121720.0,121710.0,0.00015234]
[1760020089569,0.89024706,121720.0,121710.0,0.00015234]
[1760020090007,0.89024706,121720.0,121710.0,0.16447737]
[1760020090195,0.89024706,121720.0,121710.0,0.00015234]
[1760020090492,0.89024706,121720.0,121710.0,0.16447737]
[1760020091310,0.97153553,121720.0,121710.0,0.16447737]
[1760020091510,0.72593553,121720.0,121710.0,0.20533737]
[1760020091714,0.72593553,121720.0,121710.0,0.18210737]
[1760020091969,0.89024706,121720.0,121710.0,0.18770737]
[1760020092169,0.89024706,121720.0,121710.0,0.18873249]
[1760020092471,0.13019925,121720.0,121710.0,0.24343259]
[1760020092673,0.13019925,121720.0,121710.0,0.23978249]
[1760020092876,0.13019925,121720.0,121710.0,0.20636249]
[1760020093408,0.29451078,121720.0,121710.0,0.04203746]
[1760020093592,0.89024706,121720.0,121710.0,0.20636249]
[1760020093788,0.88830903,121720.0,121710.0,0.20636249]
[1760020093994,0.88930903,121720.0,121710.0,0.00117746]
[1760020094142,0.88930903,121720.0,121710.0,0.16550249]
[1760020094546,0.7249975,121720.0,121710.0,0.20636249]
[1760020095284,0.88930903,121720.0,121710.0,0.16550249]
[1760020095670,0.7249975,121720.0,121710.0,0.20636249]
[1760020096420,0.88930903,121720.0,121710.0,0.16550249]
[1760020096956,0.7249975,121720.0,121710.0,0.20636249]
[1760020098393,0.88930903,121720.0,121710.0,0.20636249]
[1760020098805,0.7249975,121720.0,121710.0,0.20636249]
[1760020099005,0.12926122,121720.0,121710.0,0.20636249]
[1760020099160,0.7249975,121720.0,121710.0,0.20636249]
[1760020099349,0.71001024,121720.0,121710.0,0.20636249]
[1760020099591,0.0311519,121720.0,121710.0,0.27308959]
[1760020099790,0.01604228,121720.0,121710.0,0.30650959]
[1760020099990,0.001,121720.0,121710.0,0.55194959]
[1760020100612,0.00136984,121750.0,121740.0,0.16428454]
[1760020100834,0.00136984,121750.0,121740.0,0.42735454]
[1760020101040,0.00136984,121750.0,121740.0,0.28083911]
[1760020101295,0.00136984,121750.0,121740.0,0.61167911]
[1760020101594,0.16564088,121750.0,121740.0,0.41397457]
[1760020101786,0.8595636,121750.0,121740.0,0.2454]
[1760020101985,0.8897155,121750.0,121740.0,0.2454]
[1760020102188,0.16428454,121740.0,121730.0,0.10307]
[1760020102400,0.16429803,121730.0,121720.0,0.01763]
[1760020102607,0.77509869,121730.0,121720.0,0.01763]
[1760020102809,0.16431153,121720.0,121710.0,0.10322234]
[1760020103014,0.76004781,121720.0,121710.0,0.56799831]
[1760020103221,0.16431153,121720.0,121710.0,0.56799831]
[1760020103427,0.16431153,121720.0,121710.0,0.53613737]
[1760020103660,0.16431153,121720.0,121710.0,0.49527737]
[1760020103866,0.16431153,121720.0,121710.0,0.51850737]
[1760020104049,0.16431153,121720.0,121710.0,0.20533737]
[1760020104255,0.16531153,121720.0,121710.0,0.45069737]
[1760020104449,0.001,121720.0,121710.0,0.52584982]
[1760020104653,0.001,121720.0,121710.0,0.55922982]
[1760020104855,0.001,121720.0,121710.0,0.52580982]
[1760020105159,0.76104781,121720.0,121710.0,0.00015234]
[1760020105658,0.88939094,121720.0,121710.0,0.40979737]
[1760020105887,0.87432177,121720.0,121710.0,0.40979737]
[1760020106793,0.11427396,121720.0,121710.0,0.48407737]
[1760020106908,0.11427396,121720.0,121710.0,0.52580582]
[1760020107137,0.11427396,121720.0,121710.0,0.28151094]
[1760020107352,0.001,121720.0,121710.0,0.56021094]
[1760020107573,0.001,121720.0,121710.0,0.31493094]
[1760020107771,0.001,121720.0,121710.0,0.56021094]
[1760020108266,0.001,121720.0,121710.0,0.90017094]
[1760020108865,0.001,121720.0,121710.0,0.738053]
[1760020109032,0.001,121720.0,121710.0,0.983293]
[1760020109232,0.00136984,121750.0,121740.0,0.16428454]
[1760020109394,0.00136984,121750.0,121740.0,0.42715454]
[1760020109592,0.00136984,121750.0,121740.0,0.51765776]
[1760020109813,0.00136984,121750.0,121740.0,0.10813322]
[1760020110028,0.76137716,121750.0,121730.0,0.05105]
[1760020110295,0.76137716,121750.0,121730.0,0.10307]
[1760020110296,0.16428454,121740.0,121730.0,0.10307]
[1760020110530,0.77509795,121740.0,121730.0,0.3715]
[1760020110769,0.01507713,121740.0,121730.0,0.29059803]
[1760020111006,0.29399206,121750.0,121740.0,0.16428454]
[1760020111240,0.29499206,121750.0,121740.0,0.11421026]
[1760020111487,0.29499206,121750.0,121740.0,0.01763]
[1760020111695,0.16428454,121740.0,121730.0,0.26736803]
[1760020111896,0.01507713,121740.0,121730.0,0.32401803]
[1760020112114,0.01744607,121750.0,121740.0,0.16428454]
[1760020112327,0.00136984,121750.0,121740.0,0.23856454]
[1760020112537,0.00136984,121750.0,121740.0,0.3136738]
[1760020113202,0.00136984,121750.0,121740.0,0.5588338]
[1760020113595,0.00236984,121750.0,121740.0,0.5588338]
[1760020113969,0.00236984,121750.0,121740.0,0.5587938]
[1760020114442,0.00236984,121750.0,121740.0,0.3136738]
[1760020114698,0.00236984,121750.0,121740.0,0.5587938]
[1760020114913,0.00236984,121750.0,121740.0,0.3136738]
[1760020115156,0.00236984,121750.0,121740.0,0.5587538]
[1760020115367,0.00236984,121750.0,121740.0,0.64187586]
[1760020115577,0.00236984,121750.0,121740.0,0.72731586]
[1760020115767,0.00136984,121750.0,121740.0,0.72731586]
[1760020117075,0.00136984,121750.0,121740.0,0.72831586]
[1760020121300,0.00136984,121750.0,121740.0,0.48323586]
[1760020121482,0.00136984,121750.0,121740.0,0.72815586]
[1760020121865,0.00136984,121750.0,121740.0,0.64271586]
[1760020122115,0.00136984,121750.0,121740.0,0.72811586]
[1760020122329,0.00136984,121750.0,121740.0,0.48319586]
[1760020122547,0.00136984,121750.0,121740.0,0.72807586]
[1760020122935,0.00136984,121750.0,121740.0,0.5595538]
[1760020123159,0.00136984,121750.0,121740.0,0.6449538]
[1760020123746,0.00136984,121750.0,121740.0,0.3146738]
[1760020123950,0.16564088,121750.0,121740.0,0.07528]
[1760020124301,0.00136984,121750.0,121740.0,0.56980454]
[1760020124817,0.00979161,121750.0,121740.0,0.56980454]
[1760020125211,0.00136984,121750.0,121740.0,0.56980454]
[1760020125440,0.16564088,121750.0,121740.0,0.56980454]
[1760020126222,0.78363716,121750.0,121740.0,0.04186]
[1760020126428,0.79754716,121750.0,121740.0,0.3312]
[1760020126652,0.79754716,121750.0,121740.0,0.2458]
[1760020126906,0.17818104,121750.0,121740.0,0.2458]
[1760020127134,0.89545884,121750.0,121740.0,0.05231273]
[1760020127346,1.23545884,121750.0,121740.0,0.001]
[1760020127750,1.23545884,121750.0,121740.0,0.24576]
[1760020128114,1.23545884,121750.0,121740.0,0.24476]
[1760020128448,1.23645884,121750.0,121740.0,0.24476]
[1760020128841,1.23545884,121750.0,121740.0,0.24476]
[1760020129048,0.19443644,121740.0,121730.0,0.10202]
[1760020129293,0.2775585,121740.0,121730.0,0.40239389]
[1760020129466,0.87329478,121740.0,121730.0,0.36289389]
[1760020129666,0.87329478,121740.0,121730.0,0.36285389]
[1760020130562,0.87329478,121740.0,121730.0,0.33012]
[1760020131496,0.2795585,121740.0,121730.0,0.40427]
[1760020131690,0.2795585,121740.0,121730.0,0.36962]
[1760020132517,0.2494066,121740.0,121730.0,0.53387803]
[1760020132681,0.002,121740.0,121730.0,0.56852803]
[1760020132878,0.16628454,121740.0,121730.0,0.39894613]
[1760020133121,0.16628454,121740.0,121730.0,0.64362613]
[1760020133278,0.16628454,121740.0,121730.0,0.3592781]
[1760020133481,0.16628454,121740.0,121730.0,0.4446381]
[1760020133683,0.16628454,121740.0,121730.0,0.60893613]
[1760020133885,0.73557848,121750.0,121730.0,0.60893613]
[1760020134087,0.58947794,121740.0,121730.0,0.60893613]
[1760020134844,0.59047794,121740.0,121730.0,0.64358613]
[1760020135070,0.59047794,121740.0,121730.0,0.1145981]
[1760020135219,0.59047794,121740.0,121730.0,0.0395]
[1760020135423,0.59047794,121740.0,121730.0,0.3695]
[1760020136042,0.59047794,121740.0,121730.0,0.53379803]
[1760020136223,0.59047794,121740.0,121730.0,0.28919803]
[1760020136439,0.001,121740.0,121730.0,0.56844803]
[1760020136788,0.001,121740.0,121730.0,0.64353823]
[1760020137734,0.16528454,121740.0,121730.0,0.64353823]
[1760020138471,0.001,121740.0,121730.0,0.64353823]
[1760020138883,0.0002,121740.0,121730.0,0.64345823]
[1760020139882,0.00830709,121750.0,121740.0,0.16428454]
[1760020140156,0.29924503,121750.0,121740.0,0.24946601]
[1760020140374,0.17244344,121780.0,121750.0,0.16427104]
[1760020140580,0.00820877,121760.0,121750.0,0.18089104]
[1760020140704,0.46350258,121760.0,121750.0,0.53369104]
[1760020140903,0.46350258,121760.0,121750.0,0.0395]
[1760020141109,0.16427104,121750.0,121740.0,0.01662]
[1760020141309,0.16428454,121740.0,121730.0,0.10202]
[1760020141515,0.7627746,121740.0,121730.0,0.32988]
[1760020142037,0.16409803,121730.0,121720.0,0.18093153]
[1760020142214,0.46334306,121730.0,121720.0,0.42552386]
[1760020142351,0.46334306,121730.0,121720.0,0.10458193]
[1760020142558,0.46334306,121730.0,121720.0,0.53380386]
[1760020142971,0.29924503,121730.0,121720.0,0.56845386]
[1760020143372,0.2785585,121740.0,121730.0,0.16429803]
[1760020143633,0.87704856,121740.0,121730.0,0.23844803]
[1760020144230,0.2785585,121740.0,121730.0,0.23844803]
[1760020144463,0.2775585,121740.0,121730.0,0.23844803]
[1760020144600,0.2775585,121740.0,121730.0,0.31338522]
[1760020145023,0.70276132,121740.0,121730.0,0.14908719]
[1760020145228,0.16429803,121730.0,121720.0,0.51092386]
[1760020145646,0.16429803,121730.0,121720.0,0.56845386]
[1760020145848,0.70376132,121740.0,121720.0,0.56845386]
[1760020146056,0.70276132,121740.0,121730.0,0.01798995]
[1760020146251,0.70276132,121740.0,121730.0,0.04086995]
[1760020146505,0.70276132,121740.0,121730.0,0.09951433]
[1760020147312,0.70276132,121740.0,121730.0,0.26381236]
[1760020147534,0.70276132,121740.0,121730.0,0.29846236]
[1760020147685,0.70276132,121740.0,121730.0,0.54282236]
[1760020147885,0.2775585,121740.0,121730.0,0.50817236]
[1760020148234,0.70276132,121740.0,121730.0,0.50817236]
[1760020148441,0.70376132,121740.0,121730.0,0.50817236]
[1760020148642,0.70376132,121740.0,121730.0,0.34387433]
[1760020148841,0.70376132,121740.0,121730.0,0.34383433]
[1760020149072,0.70376132,121740.0,121730.0,0.01798995]
[1760020149285,0.70376132,121740.0,121730.0,0.00136995]
[1760020151969,0.16528454,121740.0,121730.0,0.00136995]
[1760020152168,0.16528454,121740.0,121730.0,0.28824995]
[1760020152585,0.16528454,121740.0,121730.0,0.45254798]
[1760020152788,0.59048736,121740.0,121730.0,0.45254798]
[1760020152997,0.59048736,121740.0,121730.0,0.3620714]
[1760020153198,0.70376132,121740.0,121730.0,0.24556995]
[1760020154545,0.70376132,121740.0,121730.0,0.00136995]
[1760020156760,1.04376132,121740.0,121730.0,0.00136995]
[1760020157581,1.04276132,121740.0,121730.0,0.00136995]
[1760020157999,1.12275812,121740.0,121730.0,0.00136995]
[1760020158197,1.12475812,121740.0,121730.0,0.00136995]
[1760020158795,1.36887812,121740.0,121730.0,0.00136995]
[1760020158965,1.38396906,121740.0,121730.0,0.00136995]
[1760020159166,1.13984906,121740.0,121730.0,0.00136995]
[1760020159385,1.38392906,121740.0,121730.0,0.00136995]
[1760020160983,1.13984906,121740.0,121730.0,0.00136995]
[1760020161201,0.61965275,121730.0,121720.0,0.00015233]
[1760020161443,0.79786255,121730.0,121720.0,1e-08]
[1760020161859,1.04190255,121730.0,121720.0,1e-08]
[1760020162070,0.79784623,121730.0,121720.0,1e-08]
[1760020162286,0.78277161,121730.0,121720.0,1e-08]
[1760020162501,1.38388198,121730.0,121720.0,1e-08]
[1760020162736,1.8090848,121730.0,121720.0,1e-08]
[1760020162950,1.83404479,121730.0,121720.0,1e-08]
[1760020163572,1.83833423,121730.0,121720.0,1e-08]
[1760020164102,1.92377423,121730.0,121720.0,1e-08]
[1760020164305,1.59433423,121730.0,121720.0,1e-08]
[1760020164520,1.83833423,121730.0,121720.0,1e-08]
[1760020164730,1.59433423,121730.0,121720.0,1e-08]
[1760020164935,1.59986624,121730.0,121720.0,1e-08]
[1760020165165,1.93130624,121730.0,121720.0,1e-08]
[1760020165393,1.60186624,121730.0,121720.0,1e-08]
[1760020165608,1.26010342,121730.0,121720.0,1e-08]
[1760020165814,1.50410342,121730.0,121720.0,1e-08]
[1760020166024,1.50710342,121730.0,121720.0,1e-08]
[1760020166453,1.26310342,121730.0,121720.0,1e-08]
[1760020166661,1.50706342,121730.0,121720.0,1e-08]
[1760020166868,1.84682624,121730.0,121720.0,1e-08]
[1760020167081,1.68830624,121730.0,121720.0,1e-08]
[1760020167291,1.93226624,121730.0,121720.0,1e-08]
[1760020167755,1.50986905,121720.0,121710.0,1e-08]
[1760020167954,1.66658542,121720.0,121710.0,1e-08]
[1760020168069,2.61445238,121720.0,121710.0,1e-08]
[1760020168909,2.94381238,121720.0,121710.0,1e-08]
[1760020169113,3.00391432,121720.0,121710.0,1e-08]
[1760020169327,0.53450394,121690.0,121680.0,0.0004]
[1760020169541,0.70258179,121690.0,121680.0,0.00055196]
[1760020169748,1.30200599,121690.0,121680.0,0.00055196]
[1760020169966,0.8871862,121690.0,121680.0,0.02475196]
[1760020170173,1.01300262,121690.0,121680.0,0.00055196]
[1760020170386,1.02803643,121690.0,121680.0,0.00055196]
[1760020170600,1.05818833,121690.0,121680.0,0.00055196]
[1760020171681,1.30206833,121690.0,121680.0,0.00055196]